Cogmind - Beta 9.6 @@@ ROGUE MODE // 2020.08.28 @ 19:48:26 Player: kerapace Result: Self-destructed Performance ------------- Evolutions (3) 1500 Regions Visited (13) 2600 Robots Destroyed (177) 885 Value Destroyed (4758) 4758 Prototype IDs (239) 4780 Alien Tech Used (0) 0 Bonus (3210) 3210 TOTAL SCORE: 17733 Bonus ------- High Alert Combat Kills 528 Follower Combat Kills 35 Aligned with FarCom 300 Met Data Miner 300 Used Data Conduit 3000 Friendly Fire -953 Cogmind --------- Core Integrity 462/700 Matter 270/300 Energy 5/100 System Corruption 3% Temperature Cool (42) Movement Core (650) Ox12 Location -6/Proximity Caves Parts ------- > --- POWER (1) -------- (None) > --- PROPULSION (4) --- Flying Fortress v7 > --- UTILITY (6) ------ Large Storage Unit Large Storage Unit Advanced Signal Interpreter Hacking Suite System Shield > --- WEAPON (2) ------- Advanced EMP Blaster > --- INVENTORY (16) --- Light Fission Core Improved VTOL Module Improved VTOL Module Improved VTOL Module Large Storage Unit Makeshift Terrain Scanner Long-range Terrain Scanner Hacking Suite System Backup Module Plasma Cannon Enhanced Autogun Improved Grenade Launcher Field Lobotomy Kit Makeshift Sword Makeshift Sword Peak State ------------ > --- POWER ------------ Enhanced Nuclear Core > --- PROPULSION ------- Flying Fortress v7 > --- UTILITY ---------- Large Storage Unit Large Storage Unit Advanced Signal Interpreter Improved Medium Armor Plating Hacking Suite System Shield > --- WEAPON ----------- Advanced EMP Blaster Field Lobotomy Kit > --- INVENTORY -------- Light Fission Core Improved VTOL Module Improved VTOL Module Improved VTOL Module Large Storage Unit Makeshift Terrain Scanner Long-range Terrain Scanner Hacking Suite System Backup Module EM Pulse Cannon Enhanced Autogun Improved Grenade Launcher Chainsword Makeshift Sword Makeshift Sword [Rating: 71] Favorites ----------- Power Ion Engine Engine Ion Engine Power Core Enhanced Nuclear Core Propulsion Light Treads Treads Light Treads Wheel Compact Wheel Flight Unit Flying Fortress v7 Utility Large Storage Unit Device Cooling System Storage Large Storage Unit Processor Advanced Targeting Computer Hackware Hacking Suite Protection Improved Medium Armor Plating Weapon Advanced Beam Cannon Energy Gun Heavy EM Shotgun Energy Cannon Advanced Beam Cannon Ballistic Gun Enhanced Autogun Ballistic Cannon Light Cannon Launcher Advanced EMP Blaster Special Weapon Field Lobotomy Kit Slashing Weapon Chainsword Build | -11 -10 -10 -9 -9 -9 -8 -8 -8 -7 -7 -7 -7 -6 ------- Run | Scr Mat Min Mat Min Exi Min Mat Sto Fac Low Low Dat Pro Slots Evolved 6 | . . . 2 . . . 2 . 2 . . . . Power . | . . . . . . . . . . . . . . Propulsion 2 | . . . 1 . . . . . 1 . . . . Utility 4 | . . . 1 . . . 2 . 1 . . . . Weapon . | . . . . . . . . . . . . . . Parts Attached 139 | 6 6 4 23 1 1 4 24 25 40 1 . 2 2 Power 14 | 1 1 1 2 1 . . 2 2 4 . . . . Engine 11 | 1 1 1 2 1 . . 2 2 1 . . . . Core 3 | . . . . . . . . . 3 . . . . Reactor . | . . . . . . . . . . . . . . Propulsion 25 | 2 1 1 6 . . 1 9 4 1 . . . . Treads 15 | 1 . 1 4 . . . 7 2 . . . . . Leg . | . . . . . . . . . . . . . . Wheel 7 | 1 1 . 1 . . 1 1 2 . . . . . Hover . | . . . . . . . . . . . . . . Flight 3 | . . . 1 . . . 1 . 1 . . . . Utility 36 | 1 2 . 6 . . 1 5 3 17 1 . . . Device 5 | . . . . . . 1 . 1 3 . . . . Storage 9 | 1 2 . 2 . . . . 1 3 . . . . Processor 2 | . . . . . . . 1 . 1 . . . . Hackware 3 | . . . . . . . . . 3 . . . . Protection 17 | . . . 4 . . . 4 1 7 1 . . . Artifact . | . . . . . . . . . . . . . . Weapon 64 | 2 2 2 9 . 1 2 8 16 18 . . 2 2 Energy Gun 5 | 1 . . 2 . . . 2 . . . . . . Energy Cannon 13 | . . . 3 . 1 1 . 3 4 . . . 1 Ballistic Gun 19 | 1 1 . . . . . 5 7 5 . . . . Ballistic Cannon 6 | . 1 1 4 . . . . . . . . . . Launcher 16 | . . 1 . . . 1 1 6 6 . . . 1 Special Weapon 1 | . . . . . . . . . . . . 1 . Impact Weapon . | . . . . . . . . . . . . . . Slashing Weapon 4 | . . . . . . . . . 3 . . 1 . Piercing Weapon . | . . . . . . . . . . . . . . Special Melee Weapon . | . . . . . . . . . . . . . . Unidentified Prototypes 10 | . . . 3 . . . 3 3 1 . . . . Parts Lost 25 | . 2 1 1 . . 3 8 2 4 . . . 4 Power 4 | . . . . . . . 2 . 1 . . . 1 Propulsion 5 | . . 1 1 . . 1 1 1 . . . . . Utility 7 | . . . . . . 1 2 1 2 . . . 1 Weapon 9 | . 2 . . . . 1 3 . 1 . . . 2 Highest Loss Streak 3 | . 1 1 1 . . 2 2 1 2 . . . 3 Average Slot Usage (%) 91 | . 96 99 99 100 100 86 92 99 74 76 76 76 72 Engine 7 | . 14 14 11 11 11 11 5 9 . . . . . Core 1 | . . . . . . . . . 6 7 7 7 6 Treads 17 | . 14 14 27 33 33 29 17 17 . . . . . Wheel 5 | . 14 13 5 . . 1 8 8 . . . . . Flight 1 | . . . . . . . . . 6 7 7 7 7 Device 1 | . . . . . . 4 4 . 2 . . . . Storage 20 | . 25 28 22 22 22 22 18 25 15 15 15 15 15 Processor 3 | . . . . . . . 8 9 . 7 7 7 7 Hackware 3 | . . . . . . . . . 14 15 15 15 15 Protection 8 | . . . 11 11 11 . 10 9 11 6 7 7 5 Energy Gun 2 | . 3 . . . . . 10 . . . . . . Energy Cannon 6 | . . . 2 22 22 17 . 5 3 7 7 3 5 Ballistic Gun 5 | . 18 14 . . . . 4 11 5 . . . . Ballistic Cannon 3 | . 5 13 19 . . . . . . . . . . Naked Turns . | . . . . . . . . . . . . . . Heaviest Build 69 | 11 34 34 52 52 52 45 57 64 69 59 59 61 59 Greatest Support 72 | 20 20 20 60 60 60 60 42 42 72 72 72 72 72 Greatest Overweight (x) 6 | 1 2 2 2 . . 2 3 6 5 . . . . Average Overweight (x) . | . 1 1 . . . . 2 3 . . . . . Largest Inventory Capacity 22 | 6 14 14 16 16 16 16 16 20 22 16 16 16 16 Average Capacity 15 | 5 11 14 14 16 16 16 16 19 16 16 16 16 16 Most Carried 20 | 4 11 14 14 15 16 16 16 20 20 12 15 15 16 Average Carried 15 | 1 7 13 13 14 15 15 15 19 15 12 12 15 15 Final Capacity 20 | 6 14 14 16 16 16 16 16 20 16 16 16 16 16 Final Carried 20 | 4 11 14 14 15 16 15 16 20 12 12 15 15 15 Class Distribution -------------------- 51% | Mutant 22% | Hacker-Mutant 14% | Hauler-Mutant 11% | Scavenger-Mutant Dominant Class ---------------- Mutant | -10/Materials Mutant | -10/Mines Mutant | -9/Materials Mutant | -9/Mines Mutant | -9/Exiles Mutant | -8/Mines Mutant | -8/Materials Hauler-Mutant | -8/Storage Hacker-Mutant | -7/Factory Hacker-Mutant | -7/Lower Caves Hacker-Mutant | -7/Lower Caves Hacker-Mutant | -7/Data Miner Hacker-Mutant | -6/Proximity Caves Resources | -11 -10 -10 -9 -9 -9 -8 -8 -8 -7 -7 -7 -7 -6 ----------- Run | Scr Mat Min Mat Min Exi Min Mat Sto Fac Low Low Dat Pro Matter Collected 3239 | 229 219 139 728 86 . 61 321 716 621 23 45 . 51 Remotely . | . . . . . . . . . . . . . . Salvage Created 6481 | . 237 273 945 206 . 354 1190 1568 1524 58 100 . 26 Parts 352 | . 25 14 62 9 . 9 57 84 83 2 4 . 3 Haulers Intercepted 15 | . 2 . 4 . . . 4 3 2 . . . . Recyclers Shooed 2 | . . . . . . 1 . 1 . . . . . Parts Field Recycled . | . . . . . . . . . . . . . . Retrieved Matter . | . . . . . . . . . . . . . . Parts Self-Destructed 2 | . . . . . . . . . . 1 1 . . Prevented 5 | . . . . . . . . . . 2 3 . . Kills | -11 -10 -10 -9 -9 -9 -8 -8 -8 -7 -7 -7 -7 -6 ------- Run | Scr Mat Min Mat Min Exi Min Mat Sto Fac Low Low Dat Pro Combat Hostiles Destroyed 128 | . 6 23 16 6 . 6 20 25 22 2 2 . . Melee 1 | . . . . . . . . . 1 . . . . Guns 37 | . 4 3 . . . . 16 10 4 . . . . Cannons 41 | . 1 5 16 6 . 4 . 4 4 . 1 . . AOE 44 | . 1 15 . . . 1 4 11 9 2 1 . . Classes Destroyed 17 | . 4 2 3 2 . . 2 2 2 . . . . Worker 7 | . . . . . . . 1 6 . . . . . Builder 4 | . . . . 1 . . . 1 2 . . . . Tunneler 1 | . . . . . . . . . 1 . . . . Hauler 15 | . 2 . 4 . . . 4 3 2 . . . . Recycler 10 | . . . 3 . . 1 2 3 1 . . . . Operator 5 | . . . 3 . . . 1 . 1 . . . . Watcher 5 | . 1 . . . . . 1 . 3 . . . . Swarmer 26 | . 5 3 4 3 . . 9 . . 2 . . . Grunt 54 | . 1 3 6 2 . 5 5 17 14 . 1 . . Brawler 4 | . . . . . . . . 3 1 . . . . Duelist 3 | . . . . 1 . 1 . . 1 . . . . Protector 1 | . . . . . . . . 1 . . . . . Sentry 16 | . . . 6 . . . 5 4 1 . . . . Demolisher 1 | . . 1 . . . . . . . . . . . Hunter 4 | . . . . . . . 1 . 2 . 1 . . Programmer 3 | . . . . . . . . . 3 . . . . Assembled 16 | . . 16 . . . . . . . . . . . Thug 1 | . . . 1 . . . . . . . . . . Best Kill Streak 16 | . 3 16 4 2 . 3 7 11 8 2 2 . . Combat Bots Only 16 | . 3 16 3 2 . 3 4 9 4 2 2 . . Max Kills in Single Turn 6 | . 1 6 1 1 . 1 3 2 3 1 1 . 1 Gunslinging . | . . . . . . . . . . . . . . Exploded 6 | . 1 6 . . . 1 3 2 1 1 1 . . Melee 1 | . . . . . . . . . 1 . . . . Uniques/NPCs Destroyed 1 | . . . . . . . . . . . . . 1 Data Miner (-6/Proximity Caves) Combat | -11 -10 -10 -9 -9 -9 -8 -8 -8 -7 -7 -7 -7 -6 -------- Run | Scr Mat Min Mat Min Exi Min Mat Sto Fac Low Low Dat Pro Damage Taken 6145 | . 469 471 426 185 . 640 1035 757 1295 179 147 . 541 Core 808 | . 112 124 46 . . 113 111 64 122 . 18 . 98 Absorbed by Shields . | . . . . . . . . . . . . . . Core Remaining (%) 58 | 100 . 5 . . . 60 . 68 . . . . . Volleys Fired 360 | . 26 23 61 14 . 23 55 74 60 5 4 1 14 Largest 2 | . 2 2 2 2 . 2 2 2 2 1 2 1 2 Hottest 136 | . 60 56 136 136 . 136 118 93 99 36 99 . 99 Shots Fired 650 | . 52 46 122 28 . 36 97 142 98 5 8 1 15 Gun 291 | . 42 23 1 . . . 85 100 40 . . . . Cannon 302 | . 10 19 121 28 . 34 11 31 37 . 4 . 7 Launcher 56 | . . 4 . . . 2 1 11 21 5 4 . 8 Special 1 | . . . . . . . . . . . . 1 . Kinetic 368 | . 45 42 120 . . . 21 100 40 . . . . Thermal 131 | . . . 2 28 . 34 11 31 25 . . . . Explosive 15 | . . 4 . . . 2 1 8 . . . . . Electromagnetic 135 | . 7 . . . . . 64 3 33 5 8 . 15 Robot Hit Streak 23 | . 4 7 10 5 . 5 23 11 11 13 3 1 5 Robot Miss Streak 5 | . 4 3 5 3 . 3 3 2 2 1 1 . 1 Penetration Max . | . . . . . . . . . . . . . . Secondary Targets 5 | . . . . . . . 3 2 . . . . . Max Gunslinging Chain 1 | . . . . . . . 1 1 . . . . . Shots Hit Robots 436 | . 21 32 74 17 . 21 78 104 68 4 4 1 12 Core Hits 271 | . 12 33 33 8 . 13 49 68 45 2 3 . 5 Critical Hits 15 | . . . 1 4 . . 2 3 5 . . . . Critical Kills 4 | . . . . . . . 1 1 2 . . . . Critical Parts Destroyed 10 | . . . 1 4 . . 1 1 3 . . . . Melee Attacks 14 | . . . . . . . . . 14 . . . . Impact . | . . . . . . . . . . . . . . Slashing 14 | . . . . . . . . . 14 . . . . Piercing . | . . . . . . . . . . . . . . Sneak Attacks . | . . . . . . . . . . . . . . Combat Hostiles . | . . . . . . . . . . . . . . Follow-up Attacks . | . . . . . . . . . . . . . . Damage Inflicted 13438 | . 461 1558 1363 369 . 683 1997 3240 3079 192 267 . 229 Guns 3406 | . 242 199 13 . . . 1271 1281 400 . . . . Cannons 3883 | . 74 204 1350 369 . 493 142 453 689 . 81 . 28 Explosions 5985 | . 145 1155 . . . 189 584 1506 1827 192 186 . 201 Melee 163 | . . . . . . . . . 163 . . . . Ramming 1 | . . . . . . 1 . . . . . . . Kinetic 3887 | . 267 403 1322 . . . 214 1281 400 . . . . Thermal 2808 | . 145 . 41 369 . 493 479 507 691 . . . 83 Explosive 2690 | . . 1155 . . . 189 97 1249 . . . . . Electromagnetic 3889 | . 49 . . . . . 1207 203 1825 192 267 . 146 Impact . | . . . . . . . . . . . . . . Slashing 163 | . . . . . . . . . 163 . . . . Piercing . | . . . . . . . . . . . . . . Highest Corruption 4 | . . . . . . . 1 4 3 3 3 3 3 Average Corruption 2 | . . . . . . . 1 2 2 3 3 3 3 Corruption Purged . | . . . . . . . . . . . . . . Effects 47 | . . . . . . . 5 17 15 3 . 2 5 Message Errors 9 | . . . . . . . . 7 1 1 . . . Matter Fused 10 | . . . . . . . . 4 4 . . 1 1 Heat Flow Errors 8 | . . . . . . . . 1 3 1 . 1 2 Energy Discharges 5 | . . . . . . . 2 . 1 1 . . 1 Parts Rejected 1 | . . . . . . . . 1 . . . . . Data Loss (minor) 6 | . . . . . . . . 2 4 . . . . Targeting Errors 8 | . . . . . . . 3 2 2 . . . 1 Overload Shots . | . . . . . . . . . . . . . . Overflow Damage 358 | . 123 36 34 . . 1 49 36 72 3 . . 4 Projectiles 71 | . . . 34 . . 1 . 6 30 . . . . Explosions 272 | . 123 36 . . . . 49 30 27 3 . . 4 Melee 15 | . . . . . . . . . 15 . . . . Knockbacks 8 | . . 1 7 . . . . . . . . . . Impact . | . . . . . . . . . . . . . . Kinetic 8 | . . 1 7 . . . . . . . . . . Secondary . | . . . . . . . . . . . . . . Self-Inflicted Damage 732 | . 167 . . . . 78 145 49 135 11 30 . 117 Shots 25 | . 3 . . . . 2 5 2 6 1 2 . 4 Rammed 1 | . . . . . . 1 . . . . . . . Targets Rammed 1 | . . . . . . 1 . . . . . . . Kicked . | . . . . . . . . . . . . . . Crushed . | . . . . . . . . . . . . . . Highest Temperature 476 | . 36 22 75 359 . 388 97 246 476 179 184 100 354 Average Temperature 93 | . 25 14 15 124 . 182 19 45 163 56 91 54 136 Received Heat Transfer 1572 | . 6 36 129 6 . 306 225 360 387 36 45 . 36 Effects 12 | . . . . . . 1 . . 10 . . . 1 Energy Bleed 4 | . . . . . . 1 . . 2 . . . 1 Interference 6 | . . . . . . . . . 6 . . . . Matter Decay 1 | . . . . . . . . . 1 . . . . Damage (minor) 1 | . . . . . . . . . 1 . . . . Siege Activations . | . . . . . . . . . . . . . . Robots Corrupted 5 | . . . . . . . 1 . 4 . . . . Combat Hostiles 4 | . . . . . . . . . 4 . . . . Parts Fried 14 | . . . . . . . 5 . 7 1 1 . . Impact Corruptions . | . . . . . . . . . . . . . . Robots Melted 1 | . . . . . . 1 . . . . . . . Combat Hostiles 1 | . . . . . . 1 . . . . . . . Parts Melted 5 | . . . 1 2 . 1 . 1 . . . . . Heat Transferred 4591 | . 150 . 74 666 . 888 809 864 1090 . . . 50 Parts Sabotaged . | . . . . . . . . . . . . . . Parts Stolen . | . . . . . . . . . . . . . . Parts Stripped . | . . . . . . . . . . . . . . Power Chain Reactions 23 | . 1 . . . . . 8 1 12 . . . 1 Missiles Intercepted . | . . . . . . . . . . . . . . Alert | -11 -10 -10 -9 -9 -9 -8 -8 -8 -7 -7 -7 -7 -6 ------- Run | Scr Mat Min Mat Min Exi Min Mat Sto Fac Low Low Dat Pro Peak Influence 824 | . 226 247 533 273 . 143 419 631 824 . . . . Average Influence 333 | . 114 215 320 189 . 105 262 492 500 . . . . Maximum Alert Level 3 | . 1 1 2 1 . . 2 2 3 . . . . Low Security (%) 23 | 100 81 25 16 58 . 100 14 6 . . . . . Level 1 39 | . 18 74 55 41 . . 78 9 21 . . . . Level 2 35 | . . . 27 . . . 6 84 69 . . . . Level 3 1 | . . . . . . . . . 8 . . . . Level 4 . | . . . . . . . . . . . . . . Level 5 . | . . . . . . . . . . . . . . High Security . | . . . . . . . . . . . . . . Max Security . | . . . . . . . . . . . . . . Squads Dispatched 22 | . 2 1 4 . . . 4 4 7 . . . . Investigation 3 | . 2 1 . . . . . . . . . . . Extermination 2 | . . . . . . . . . 2 . . . . Reinforcement 15 | . . . 4 . . . 4 2 5 . . . . Assault 2 | . . . . . . . . 2 . . . . . Garrison . | . . . . . . . . . . . . . . Intercept . | . . . . . . . . . . . . . . Construction Impeded 5 | . . . . . . . 1 2 2 . . . . Haulers Reinforced 2 | . . . . . . . . . 2 . . . . Stealth | -11 -10 -10 -9 -9 -9 -8 -8 -8 -7 -7 -7 -7 -6 --------- Run | Scr Mat Min Mat Min Exi Min Mat Sto Fac Low Low Dat Pro Distress Signals 13 | . 1 . 5 . . . 3 2 2 . . . . Communications Jammed . | . . . . . . . . . . . . . . Distress Signals . | . . . . . . . . . . . . . . Times Spotted 241 | . 12 28 38 10 . 6 36 37 58 11 4 . 1 Peak Tracking Total 12 | . 3 12 3 3 . 3 7 7 9 7 4 . 1 Tactical Retreats 24 | . 3 1 . 3 . . . 1 12 3 1 . . Traps | -11 -10 -10 -9 -9 -9 -8 -8 -8 -7 -7 -7 -7 -6 ------- Run | Scr Mat Min Mat Min Exi Min Mat Sto Fac Low Low Dat Pro Traps Triggered 4 | . 2 . . . . . 1 . 1 . . . . Indirectly . | . . . . . . . . . . . . . . Trap Hack Attempts . | . . . . . . . . . . . . . . Triggered . | . . . . . . . . . . . . . . Disarmed 1 | . . . . . . . . 1 . . . . . Reprogrammed . | . . . . . . . . . . . . . . Reused . | . . . . . . . . . . . . . . Traps Extracted . | . . . . . . . . . . . . . . Installed . | . . . . . . . . . . . . . . Triggered . | . . . . . . . . . . . . . . Machines | -11 -10 -10 -9 -9 -9 -8 -8 -8 -7 -7 -7 -7 -6 ---------- Run | Scr Mat Min Mat Min Exi Min Mat Sto Fac Low Low Dat Pro Machines Disabled 22 | . 2 . 2 . . . 5 3 10 . . . . Max in Single Turn 3 | . 2 . 1 . . . 2 1 3 . . . . Garrison Access 2 | . . . . . . . 1 . 1 . . . . Machines Sabotaged . | . . . . . . . . . . . . . . Garrisons Compromised . | . . . . . . . . . . . . . . Overloaded Fab Kills . | . . . . . . . . . . . . . . Fab Network Shutdowns . | . . . . . . . . . . . . . . Hacking | -11 -10 -10 -9 -9 -9 -8 -8 -8 -7 -7 -7 -7 -6 --------- Run | Scr Mat Min Mat Min Exi Min Mat Sto Fac Low Low Dat Pro Machines Accessed 30 | . 1 1 3 . 1 . 4 7 9 . 1 3 . Terminals 18 | . 1 . 2 . . . 2 6 7 . . . . Fabricators . | . . . . . . . . . . . . . . Repair Stations 1 | . . . . . . . . 1 . . . . . Recycling Units . | . . . . . . . . . . . . . . Scanalyzers 3 | . . . 1 . . . 1 . 1 . . . . Garrison Access 2 | . . . . . . . 1 . 1 . . . . Total Hacks 72 | . 1 1 7 . 1 . 10 15 20 . 1 16 . Successful 47 | . . 1 5 . 1 . 4 9 10 . 1 16 . Failed 25 | . 1 . 2 . . . 6 6 10 . . . . Catastrophic 7 | . . . 1 . . . 2 2 2 . . . . Database Lockouts . | . . . . . . . . . . . . . . Manual 25 | . 1 . 1 . 1 . 3 8 11 . . . . Terminals 39 | . 1 . 3 . . . 4 13 18 . . . . Fabricators . | . . . . . . . . . . . . . . Repair Stations 2 | . . . . . . . . 2 . . . . . Recycling Units . | . . . . . . . . . . . . . . Scanalyzers 9 | . . . 4 . . . 4 . 1 . . . . Garrison Access 3 | . . . . . . . 2 . 1 . . . . Terminal Hacks 29 | . . 1 1 . 1 . . 4 5 . 1 16 . Record 6 | . . . . . . . . . . . . 6 . Part Schematic 7 | . . . . . . . . . 2 . . 5 . Robot Schematic 5 | . . . . . . . . . . . . 5 . Robot Analysis 1 | . . . . . . . . . 1 . . . . Open Door 4 | . . 1 . . . . . 2 . . 1 . . Branch Access Points 1 | . . . . . . . . . 1 . . . . Repair Station Index 1 | . . . . . . . . 1 . . . . . Unreport Threat 1 | . . . . . . . . . 1 . . . . Disarm Traps 1 | . . . . . . . . 1 . . . . . Hauler Manifests 1 | . . . 1 . . . . . . . . . . EX-Prototype ID Bank 1 | . . . . . 1 . . . . . . . . Fabricator Hacks . | . . . . . . . . . . . . . . Repair Station Hacks 2 | . . . . . . . . 2 . . . . . Scan Component 1 | . . . . . . . . 1 . . . . . Repair 1 | . . . . . . . . 1 . . . . . Recycling Unit Hacks . | . . . . . . . . . . . . . . Scanalyzer 8 | . . . 4 . . . 3 . 1 . . . . Insert Component 5 | . . . 2 . . . 2 . 1 . . . . Analyze 3 | . . . 2 . . . 1 . . . . . . Garrison Access Hacks 2 | . . . . . . . 1 . 1 . . . . Seal Access 2 | . . . . . . . 1 . 1 . . . . Unauthorized Hacks 6 | . . . . . . . . 3 3 . . . . Terminals 6 | . . . . . . . . 3 3 . . . . Assimilate 1 | . . . . . . . . . 1 . . . . Botnet 5 | . . . . . . . . 3 2 . . . . Fabricators . | . . . . . . . . . . . . . . Repair Stations . | . . . . . . . . . . . . . . Recycling Units . | . . . . . . . . . . . . . . Scanalyzers . | . . . . . . . . . . . . . . Garrison Access . | . . . . . . . . . . . . . . Data Cores Recovered 1 | . . . . . . . . . 1 . . . . Used 1 | . . . . . . . . . 1 . . . . Hacking Detections 19 | . 1 . 2 . . . 3 6 7 . . . . Full Trace Events 1 | . . . . . . . . 1 . . . . . Feedback Events . | . . . . . . . . . . . . . . Feedback Blocked . | . . . . . . . . . . . . . . Robot Schematics Acquired 5 | . . . . . . . . . . . . 5 . Robots Built . | . . . . . . . . . . . . . . Matter . | . . . . . . . . . . . . . . Time . | . . . . . . . . . . . . . . Total Robot Build Rating . | . . . . . . . . . . . . . . Part Schematics Acquired 10 | . . . 2 . . . 1 . 2 . . 5 . Parts Built . | . . . . . . . . . . . . . . Matter . | . . . . . . . . . . . . . . Time . | . . . . . . . . . . . . . . Total Part Build Rating . | . . . . . . . . . . . . . . Parts Repaired 1 | . . . . . . . . 1 . . . . . Time 70 | . . . . . . . . 70 . . . . . Parts Recycled . | . . . . . . . . . . . . . . Recycled Matter . | . . . . . . . . . . . . . . Retrieved Matter . | . . . . . . . . . . . . . . Retrieved Components . | . . . . . . . . . . . . . . Parts Scanalyzed 3 | . . . 2 . . . 1 . . . . . . Part Schematics Acquired 3 | . . . 2 . . . 1 . . . . . . Parts Damaged 1 | . . . . . . . 1 . . . . . . Bothacking | -11 -10 -10 -9 -9 -9 -8 -8 -8 -7 -7 -7 -7 -6 ------------ Run | Scr Mat Min Mat Min Exi Min Mat Sto Fac Low Low Dat Pro Used RIF Installer . | . . . . . . . . . . . . . . Robots Hacked . | . . . . . . . . . . . . . . Non-combat . | . . . . . . . . . . . . . . Combat . | . . . . . . . . . . . . . . Robot Hacks Applied . | . . . . . . . . . . . . . . Relay Couplers Released 3 | . . . . . . . 3 . . . . . . Machine Destruction 3 | . . . . . . . 3 . . . . . . Robots Rewired . | . . . . . . . . . . . . . . Allies Hacked . | . . . . . . . . . . . . . . Hacks Repelled . | . . . . . . . . . . . . . . Allies | -11 -10 -10 -9 -9 -9 -8 -8 -8 -7 -7 -7 -7 -6 -------- Run | Scr Mat Min Mat Min Exi Min Mat Sto Fac Low Low Dat Pro Total Allies 4 | . . . . . . . . 2 1 . . 1 . Largest Group 2 | . . . . . . . . 2 1 . . 1 1 Highest-Rated Group 62 | . . . . . . . . 62 26 . . 59 59 Highest-Rated Ally 59 | . . . . . . . . 31 26 . . 59 59 Total Orders . | . . . . . . . . . . . . . . Ally Attacks 10 | . . . . . . . . 10 . . . . . Total Damage 210 | . . . . . . . . 210 . . . . . Kills 1 | . . . . . . . . 1 . . . . . Allies Corrupted . | . . . . . . . . . . . . . . Allies Melted . | . . . . . . . . . . . . . . Field Lobotomies 1 | . . . . . . . . . . . . 1 . Intel | -11 -10 -10 -9 -9 -9 -8 -8 -8 -7 -7 -7 -7 -6 ------- Run | Scr Mat Min Mat Min Exi Min Mat Sto Fac Low Low Dat Pro Robot Analysis Total 116 | . . . . . . . . . 1 . . 115 . Derelict Logs Recovered 6 | . . 2 . 1 . . . . . 1 1 . 1 Drone Launches . | . . . . . . . . . . . . . . Drone Recoveries . | . . . . . . . . . . . . . . Exploration | -11 -10 -10 -9 -9 -9 -8 -8 -8 -7 -7 -7 -7 -6 ------------- Run | Scr Mat Min Mat Min Exi Min Mat Sto Fac Low Low Dat Pro Turns Passed 7378 | 75 343 392 894 465 705 293 1307 1217 1142 165 145 56 179 Spaces Moved 5859 | 54 220 252 449 263 437 145 801 608 1719 305 259 90 257 Core 9 | 9 . . . . . . . . . . . . . Treads 1315 | 25 31 4 249 263 437 113 48 145 . . . . . Legs . | . . . . . . . . . . . . . . Wheels 1909 | 20 189 248 200 . . 32 753 463 4 . . . . Hover . | . . . . . . . . . . . . . . Flight 2626 | . . . . . . . . . 1715 305 259 90 257 Fastest Speed 50 | 50 90 120 120 160 160 120 120 130 50 50 50 50 50 Average Speed 99 | 115 113 121 143 160 160 154 130 144 50 50 50 50 50 Slowest Speed 220 | 160 180 190 180 160 160 180 200 220 130 50 50 50 50 Overloaded Moves . | . . . . . . . . . . . . . . Propulsion Burnouts . | . . . . . . . . . . . . . . Robots Hopped 18 | . . . . . . . . . 18 . . . . Cave-ins Triggered . | . . . . . . . . . . . . . . Exploration Rate (%) 52 | 4 59 65 58 53 70 33 61 72 45 58 50 75 32 Regions Visited 13 Branch Regions 9 Pre-discovered Areas 25 | . . . . 2 . . . 1 . . . 22 . Known Exits Taken 6 | . . . 1 . . 1 . . 1 1 1 1 . Unknown Exits Taken 7 | 1 1 1 . 1 1 . 1 1 . . . . . Scrap Searched 7 | . . 1 . 1 . . . . . 2 1 . 2 Spaces Dug 16 | . . . . . . . . 7 9 . . . . Terrain Destroyed 310 | . 49 41 . . . 32 45 64 71 . . . 8 Melee 9 | . . . . . . . . . 9 . . . . Projectile 1 | . . . . . . . . 1 . . . . . AOE 300 | . 49 41 . . . 32 45 63 62 . . . 8 Actions | -11 -10 -10 -9 -9 -9 -8 -8 -8 -7 -7 -7 -7 -6 --------- Run | Scr Mat Min Mat Min Exi Min Mat Sto Fac Low Low Dat Pro Total 6747 | 63 260 294 580 279 446 175 969 846 1871 311 265 97 291 Wait 255 | . 2 7 12 2 . 3 67 113 27 . . 5 17 Move 5816 | 53 219 251 448 262 436 144 800 607 1688 304 258 89 257 Hop 12 | . . . . . . . . . 12 . . . . Pick Up 66 | 4 7 5 14 . 3 . 8 10 11 . 3 . 1 Fast Attach 47 | 6 1 . 7 . . 1 15 10 6 1 . . . Attach 24 | . 2 . 6 . . 1 3 2 9 . . . 1 Detach 2 | . . . 1 . . . 1 . . . . . . Swap 69 | . 3 4 10 1 1 2 7 13 25 . . 2 1 Drop 81 | . . 4 21 . 6 . 13 17 19 1 . . . Fire 360 | . 26 23 61 14 . 23 55 74 60 5 4 1 14 Melee 14 | . . . . . . . . . 14 . . . . Ram . | . . . . . . . . . . . . . . Kick . | . . . . . . . . . . . . . . Crush 1 | . . . . . . 1 . . . . . . . Escape Stasis . | . . . . . . . . . . . . . . Rewire . | . . . . . . . . . . . . . . Trap . | . . . . . . . . . . . . . . Miscellaneous . | . . . . . . . . . . . . . . Route ------- -11/Scrapyard -10/Materials (discovered 2 exits: *Mat / *Min) -10/Mines -9/Materials (discovered 3 exits: *Mat x2 / *Min) -9/Mines (discovered 3 exits: *Mat x2 / *Exi) -9/Exiles -8/Mines -8/Materials (discovered 2 exits: *Fac / *Sto) -8/Storage -7/Factory (discovered 4 exits: [*Fac x2] / *Low x2) -7/Lower Caves -7/Lower Caves (discovered 2 exits: [*Fac] / *Dat) -7/Data Miner -6/Proximity Caves History --------- Turn | Location | Event 19 | -11/Scrapyard | Discovered new exit (range 15) 76 | -11/Scrapyard | Entered Materials 312 | -10/Materials | Build established: Mutant 353 | -10/Materials | Discovered new exit (range 5) 398 | -10/Materials | Discovered new exit (range 14) 419 | -10/Materials | Entered Mines 428 | -10/Mines | Met a Derelict bent on vengeance 466 | -10/Mines | Met a Derelict shopkeep closing up shop 532 | -10/Mines | Core integrity fell below 50% 566 | -10/Mines | Learned location of 2 exits from Materials 696 | -10/Mines | Learned Materials trap positions 711 | -10/Mines | Assembled infested the area 716 | -10/Mines | Assisted by a Guerilla fighting off Assembled 749 | -10/Mines | Discovered new exit (range 3) 751 | -10/Mines | Destroyed 16 combat bots 807 | -10/Mines | Core integrity fell below 20% 811 | -10/Mines | Entered Materials 811 | -9/Materials | Evolved 2 slots: Propulsion x1, Utility x1 812 | -9/Materials | Identified exit to Materials 812 | -9/Materials | Identified exit to Mines 813 | -9/Materials | Loaded intel: 17 trap records 1538 | -9/Materials | Discovered exit to Materials (range 5) 1705 | -9/Materials | Entered Mines 1779 | -9/Mines | Learned location of Zion (-6) 1789 | -9/Mines | Deemed a non-threat by the Exiles lab entrance 1789 | -9/Mines | Discovered new exit (range 5) 1825 | -9/Mines | Discovered exit to Materials (range 7) 2008 | -9/Mines | Discovered exit to Materials (range 7) 2009 | -9/Mines | Learned location of Storage (-8) 2170 | -9/Mines | Entered Exiles 2211 | -9/Exiles | Met 8R-AWN 2237 | -9/Exiles | Met EX-HEX 2282 | -9/Exiles | Met EX-BIN 2301 | -9/Exiles | Aligned with FarCom system 2303 | -9/Exiles | Given EX-Vault access code 2339 | -9/Exiles | Opened EX-Vault 2352 | -9/Exiles | Found Field Lobotomy Kit 2401 | -9/Exiles | Found Flying Fortress v7 2435 | -9/Exiles | Warned to stay clear of 0b10 Research branches 2477 | -9/Exiles | Met EX-DEC 2862 | -9/Exiles | Discovered new exit (range 10) 2875 | -9/Exiles | Stole two prototypes: Flying Fortress v7, Field Lobotomy Kit 2875 | -9/Exiles | Entered Mines 3150 | -8/Mines | Discovered exit to Materials (range 3) 3168 | -8/Mines | Entered Materials 3168 | -8/Materials | Evolved 2 slots: Utility x2 3418 | -8/Materials | Discovered new exit (range 16) 3671 | -8/Materials | Build established: Scavenger-Mutant 4242 | -8/Materials | Build established: Mutant 4391 | -8/Materials | Discovered new exit (range 3) 4475 | -8/Materials | Entered Storage 4485 | -8/Storage | Met a pair of Derelict thieves 4597 | -8/Storage | Destroyed 9 combat bots 4947 | -8/Storage | Build established: Hauler-Mutant 4991 | -8/Storage | Found Prototype Launcher 4991 | -8/Storage | Identified Gui. Missile Launcher 5110 | -8/Storage | Discovered new exit (range 16) 5463 | -8/Storage | Learned location of Armory (-3) 5582 | -8/Storage | Repaired Broken Lgt. Fission Core? 5692 | -8/Storage | Entered Factory 5692 | -7/Factory | Evolved 2 slots: Propulsion x1, Utility x1 5694 | -7/Factory | FarCom data flow suspended 5728 | -7/Factory | Identified exit to Lower Caves 5999 | -7/Factory | Build established: Hacker-Mutant 6347 | -7/Factory | Discovered new exit (range 14) 6717 | -7/Factory | Discovered new exit (range 5) 6834 | -7/Factory | Entered Lower Caves 6870 | -7/Lower Caves | Ambushed by wild Derelicts 6901 | -7/Lower Caves | Learned location of 1 exit from Factory 6996 | -7/Lower Caves | Discovered new exit (range 6) 6998 | -7/Lower Caves | Identified exit to Lower Caves 6999 | -7/Lower Caves | Entered another Lower Caves area 7070 | -7/Lower Caves | Discovered new exit (range 8) 7105 | -7/Lower Caves | Learned Factory emergency access door positions 7133 | -7/Lower Caves | Encountered a Warlord checkpoint 7141 | -7/Lower Caves | Discovered new exit (range 4) 7143 | -7/Lower Caves | Identified exit to Data Miner 7144 | -7/Lower Caves | Entered Data Miner 7144 | -7/Data Miner | Discovered new exit (range 6) 7154 | -7/Data Miner | Met Data Miner 7166 | -7/Data Miner | Learned location of Section 7 (-2) 7166 | -7/Data Miner | Acquired the access code to Warlord's prototype stash 7170 | -7/Data Miner | Received God Mode back door access code from Data Miner 7176 | -7/Data Miner | Assimilated Data Miner with FLK Orb 7180 | -7/Data Miner | Interfaced with the Data Conduit 7197 | -7/Data Miner | Identified exit to Proximity Caves 7200 | -7/Data Miner | Entered Proximity Caves 7200 | -6/Proximity Caves | Accompanied by 1 ally 7219 | -6/Proximity Caves | Destroyed Data Miner 7284 | -6/Proximity Caves | Spotted B-75 Beast 7299 | -6/Proximity Caves | Learned Factory security intel 7379 | -6/Proximity Caves | Self-destructed Last Messages --------------- 07291_ Found Plasma Cannon. 07291_ Found Imp. Salvage Targeting Computer. 07292_ Acquired Plasma Cannon. 07293_ Acquired 8 matter. 07299_ Acquired derelict log, extracted data. Data stored: Factory security intel. 07304_ Searching scrap... 07304_ Found 38 Matter. 07304_ Found Mak. Salvage Targeting Computer. 07304_ Found Core Shielding. 07304_ Found Mak. Hammer. 07306_ Acquired 10 matter. 07315_ System corrupted: Matter fused (-7). 07324_ Acquired 7 matter. 07337_ System corrupted: Energy discharge (-120). 07346_ EM Pulse Cannon destroyed. 07346_ Destroyed EM Pulse Cannon. 07348_ Imp. Medium Armor Plating destroyed. 07369_ System corrupted: Heat flow error (+264). 07369_ Enh. Nuclear Core destroyed. Map ----- +----------------------------------------------------+ | ????????????# ##??????????????????????????????? | | ????????????# #???????????????????????????????? | | ????????????# ##??????????????????????????????? | | ????????????# #??????????????????????????????? | | ????????????# #??????????????????????????????? | | ????????????+ #??????????????????????????????? | | ????????????+ ##?????????????????????????????? | | ????????????+ ##????????????????????????????? | | ????????????+ #????????????????????????????? | | ????????????# #????????????????????????????? | | ????????????# ##????????????????????????????? | | ????????????# #?????????????????????????????? | | ????????????# ###?????????????????????????????? | | ????????????# ##???????????????????????????????? | | ####++####### ##???????????????????????????????? | | #???????????????????????????????? | | #???????????????????????????????? | | ?## ####???????????????????????????????? | | ??# #??????????????????????????????????? | | ??## ##????####?????????????????????????? | | ???## #### #???## ##????????????????????????? | | ????####???# #??## #????????????????????????? | | ???????????# ##??# #??????????####??? ??????? | | ???????????# ##### #??##???##?# ## ?????? | | ???????????# ### #### ## ?????? | | ???????????# ##### @ ????? | | ???????????# ##??# # ????? | | ???????????# ##?# ; # ## ?????? | | ???????????## ### # BB ## ?????? | | ????????????# ## BB ????? | | ???????###### # ### ????? | | ??????## ########## #;C ?????? | | ?###### #???##### ##? ?????? | | ?# ##??## #" #???? ??????? | | ?# ##### #?????????????? | | ?# "" " %* ### ##?????????????? | | ?? """" "" /! ###??####??????????????? | | # """ "" ## ##" #??????????????????????? | | " " ### #?# #??????????????????????? | | ##### ### #??????????????????????? | | #?## #??????????????????????? | | #### # ### #??????????????????????? | | ???# ! ## ##?????????????????????? | | ## /%! #### #?????????????????????? | | ????# #?#### ###### #?????????????????????? | | ????## ?????# #??# #?????????????????????? | | ?????## #?????# ##### ##?????????????????????? | | ??????###?????### ### ##??????????????????????? | | ??????????????# #####???????????????????????? | | ?????????????# # ##???????????????????????????? | +----------------------------------------------------+ Best States ------------- Heat Dissipation 61 Energy Generation 18 Energy Capacity 300 Matter Stores 300 Matter Capacity 300 Sight Range 16 Terrain Scan Density 10 Armor Coverage 375 Resistance: TH 10 Resistance: EM 20 Propulsion Shielding 66 Evasion (%) 60 Targeting Accuracy 8 Recoil Reduction 3 Offensive Hacking 20 Defensive Hacking 10 Item Schematics ----------------- Arm. Treads | -9/Materials | Scanalyzed Adv. Targeting Computer | -9/Materials | Scanalyzed Lgt. Fission Core | -8/Materials | Scanalyzed Adv. Hacking Suite | -7/Factory | Hacked Imp. Component Analysis Suite | -7/Factory | Hacked Combat Drone Bay | -7/Data Miner | Free Lgt. Regenerative Plating | -7/Data Miner | Free Exp. Targeting Computer | -7/Data Miner | Free Cloaking Device | -7/Data Miner | Free Plasma Sword | -7/Data Miner | Free Robot Schematics ------------------ S-27 Virus | -7/Data Miner | Free G-50 Soldier | -7/Data Miner | Free L-41 Fighter | -7/Data Miner | Free H-66 Slayer | -7/Data Miner | Free I-36 Angel | -7/Data Miner | Free Fabricated ------------ Nothing Alien Tech Used ----------------- None Achievements -------------- None Challenges ------------ None Game ------ Seed HackingScanDissipator Manual? 0 Play Time 01:43:30 Cumulative 375.7 hours Start 2020.08.28 @ 17:46:23 End 2020.08.28 @ 19:48:26 Sessions 3 Manual Loads 0 Difficulty Rogue Special Mode None Game No. 280 Rogue 280 Adventurer 0 Explorer 0 Win Type - Total 11 Types 10/0/0/1/0/0/0 Lore% 78 Gallery% 77 Achievement% 64 Wizard Run 0 Options --------- ASCII 0 Keyboard 0 Movement Arrows Keybinds 0 Fullscreen 0 Font 16/SmallcapsGlow Map View 76x50 Tactical HUD 1 Map Filters NONE Filters NONE Steam 1 RUN: 9878407b-2f63-4f27-8fc8-f1f24c7ecb4d